bitfinex/quotes_BTCUSD_20250331
["timestamp","ask_amount","ask_price","bid_price","bid_amount"]
[1743424958844,0.0345019,82457.0,82456.0,0.39000698]
[1743424959046,0.0345019,82457.0,82456.0,0.13332698]
[1743424959253,0.0345019,82457.0,82456.0,0.45999483]
[1743424959451,0.0345019,82457.0,82456.0,0.70054783]
[1743424959925,0.0345019,82457.0,82456.0,0.70354783]
[1743424960390,0.0345019,82457.0,82456.0,0.70054783]
[1743424960601,0.0345019,82457.0,82456.0,0.70254783]
[1743424961016,0.0345019,82457.0,82456.0,0.70454783]
[1743424961849,0.0345019,82457.0,82456.0,0.70254783]
[1743424962059,0.0345019,82457.0,82456.0,0.70354783]
[1743424962465,0.0345019,82457.0,82456.0,0.44032698]
[1743424962669,0.0345019,82457.0,82456.0,0.69500698]
[1743424962867,0.0345019,82457.0,82456.0,0.70954783]
[1743424963353,0.0345019,82457.0,82456.0,0.70354783]
[1743424963592,0.0345019,82457.0,82456.0,0.70754783]
[1743424963775,0.0345019,82457.0,82456.0,0.70354783]
[1743424964020,0.0345019,82457.0,82456.0,0.70654783]
[1743424964396,0.0345019,82457.0,82456.0,0.70354783]
[1743424964599,0.0345019,82457.0,82456.0,0.70654783]
[1743424965032,0.0345019,82457.0,82456.0,0.40654783]
[1743424965464,0.0345019,82457.0,82456.0,0.13332698]
[1743424965465,0.2891789,82457.0,82456.0,0.13332698]
[1743424965667,0.3665789,82457.0,82456.0,0.01072312]
[1743424965849,0.3665789,82457.0,82456.0,0.008]
[1743424966211,0.4125789,82457.0,82456.0,0.003]
[1743424966418,0.8259789,82457.0,82456.0,0.003]
[1743424966716,0.8259789,82457.0,82446.0,0.012129]
[1743424966717,0.77998559,82457.0,82446.0,0.012129]
[1743424966909,0.77998559,82457.0,82448.0,0.242576]
[1743424967108,0.77998559,82457.0,82447.0,0.12260386]
[1743424967109,0.77998559,82457.0,82456.0,0.003]
[1743424967308,0.77998559,82457.0,82456.0,0.12260386]
[1743424968630,0.70258559,82457.0,82456.0,0.12260386]
[1743424969039,0.69758559,82457.0,82456.0,0.12260386]
[1743424970925,0.00110284,82458.0,82456.0,0.12848439]
[1743424971128,0.00110284,82458.0,82457.0,0.12260386]
[1743424971345,0.00110284,82458.0,82457.0,0.36515386]
[1743424971515,0.00110284,82458.0,82457.0,0.12848366]
[1743424973173,0.00110284,82458.0,82457.0,0.12948366]
[1743424974411,0.24364984,82458.0,82457.0,0.12948366]
[1743424974633,0.25577684,82458.0,82457.0,0.12948366]
[1743424975798,0.25594484,82458.0,82457.0,0.12948366]
[1743424977559,0.24381784,82458.0,82457.0,0.12948366]
[1743424977790,0.00127084,82458.0,82457.0,0.12948366]
[1743424977986,0.00127084,82458.0,82457.0,0.0068798]
[1743424977987,0.24381784,82458.0,82457.0,0.0068798]
[1743424978189,0.33114484,82458.0,82457.0,0.0068798]
[1743424978741,0.33114484,82458.0,82457.0,0.001]
[1743424979619,0.254683,82455.0,82454.0,0.000336]
[1743424979783,0.242556,82455.0,82454.0,0.000336]
[1743424979987,0.254683,82455.0,82454.0,0.000336]
[1743424980220,0.07647084,82458.0,82454.0,0.000336]
[1743424980397,0.254683,82455.0,82454.0,0.000336]
[1743424981618,0.00127084,82458.0,82454.0,0.12293986]
[1743424981823,0.242553,82456.0,82455.0,0.12853032]
[1743424982221,0.24255,82457.0,82455.0,0.12853032]
[1743424982421,0.00127084,82458.0,82455.0,0.12853032]
[1743424982654,0.00127084,82458.0,82455.0,0.36515986]
[1743424982853,0.00127084,82458.0,82456.0,0.00592573]
[1743424983031,0.00127084,82458.0,82456.0,0.12852959]
[1743424983652,0.00127084,82458.0,82457.0,0.37728086]
[1743424983816,0.00127084,82458.0,82457.0,0.38320586]
[1743424985654,0.00127084,82458.0,82457.0,0.39774671]
[1743424985853,0.00127084,82458.0,82457.0,0.47674671]
[1743424986473,0.00127084,82458.0,82457.0,0.52654671]
[1743424986683,8.4e-07,82464.0,82460.0,0.012127]
[1743424986882,8.4e-07,82464.0,82463.0,0.39180371]
[1743424987063,8.4e-07,82464.0,82463.0,1.62053686]
[1743424987416,8.4e-07,82464.0,82463.0,1.92053686]
[1743424987626,8.4e-07,82464.0,82463.0,1.99683686]
[1743424988682,8.4e-07,82464.0,82463.0,2.00083686]
[1743424988885,8.4e-07,82464.0,82463.0,2.04713686]
[1743424989290,8.4e-07,82464.0,82463.0,2.45573686]
[1743424989469,8.4e-07,82464.0,82463.0,2.48073686]
[1743424990151,8.4e-07,82464.0,82463.0,2.45173686]
[1743424990314,8.4e-07,82464.0,82463.0,2.45573686]
[1743424990516,0.05000084,82464.0,82463.0,2.45173686]
[1743424990721,0.05000084,82464.0,82463.0,2.45773686]
[1743424990957,0.05000084,82464.0,82463.0,2.46373686]
[1743424991091,0.05000084,82464.0,82463.0,2.45773686]
[1743424992312,0.05000084,82464.0,82463.0,2.48186749]
[1743424992514,0.05000084,82464.0,82463.0,2.48786749]
[1743424992925,0.05000084,82464.0,82463.0,2.48186749]
[1743424993408,8.4e-07,82464.0,82463.0,2.48686749]
[1743424993614,8.4e-07,82464.0,82463.0,2.48186749]
[1743424994082,8.4e-07,82464.0,82463.0,2.48786749]
[1743424994694,8.4e-07,82464.0,82463.0,2.48186749]
[1743424995123,8.4e-07,82464.0,82463.0,2.48786749]
[1743424995574,8.4e-07,82464.0,82463.0,2.48186749]
[1743424996032,8.4e-07,82464.0,82463.0,2.48786749]
[1743424996741,8.4e-07,82480.0,82479.0,0.61414985]
[1743424996974,8.4e-07,82480.0,82479.0,3.67158265]
[1743424997200,8.4e-07,82480.0,82479.0,3.67736074]
[1743424998077,8.4e-07,82480.0,82479.0,3.26876074]
[1743424998288,8.4e-07,82480.0,82479.0,1.35775822]
[1743424998703,8.4e-07,82480.0,82479.0,1.36988222]
[1743424998912,8.4e-07,82480.0,82479.0,1.36388222]
[1743424999083,8.4e-07,82480.0,82479.0,1.36629907]
[1743424999304,8.4e-07,82480.0,82479.0,1.37842307]
[1743424999667,8.4e-07,82480.0,82479.0,1.38442307]
[1743425000392,8.4e-07,82480.0,82479.0,1.38942307]
[1743425000589,8.4e-07,82480.0,82479.0,1.38442307]
[1743425000797,8.4e-07,82480.0,82479.0,1.61236722]
[1743425001108,8.4e-07,82480.0,82479.0,1.63090807]
[1743425002100,8.4e-07,82480.0,82479.0,1.37629907]
[1743425002501,8.4e-07,82480.0,82479.0,1.642858]
[1743425002704,0.00016874,82480.0,82479.0,1.654982]
[1743425005755,0.00016874,82480.0,82479.0,2.032982]
[1743425005958,7.4e-07,82480.0,82479.0,2.080682]
[1743425006556,7.4e-07,82480.0,82479.0,2.074682]
[1743425006987,7.4e-07,82480.0,82479.0,2.076682]
[1743425007368,7.4e-07,82480.0,82479.0,2.080682]
[1743425007772,7.4e-07,82480.0,82479.0,2.076682]
[1743425007985,7.4e-07,82480.0,82479.0,2.082682]
[1743425008188,7.4e-07,82480.0,82479.0,2.076682]
[1743425008613,7.4e-07,82480.0,82479.0,2.082682]
[1743425009123,7.4e-07,82480.0,82479.0,2.076682]
[1743425009268,4.4e-07,82494.0,82493.0,0.35100685]
[1743425009465,2.1e-07,82509.0,82504.0,0.242412]
[1743425009680,2.1e-07,82509.0,82508.0,0.77356471]
[1743425009964,2.1e-07,82509.0,82508.0,0.77922933]
[1743425010138,2.1e-07,82509.0,82508.0,1.14150057]
[1743425010627,2.1e-07,82509.0,82508.0,1.14196796]
[1743425011967,2.1e-07,82509.0,82508.0,1.15396796]
[1743425012175,2.1e-07,82509.0,82508.0,1.14796796]
[1743425012379,2.1e-07,82509.0,82508.0,1.06006796]
[1743425012575,2.1e-07,82509.0,82508.0,0.94329672]
[1743425012825,2.1e-07,82509.0,82508.0,0.94929672]
[1743425013312,2.1e-07,82509.0,82508.0,0.94329672]
[1743425013723,3.1e-07,82517.0,82516.0,0.554495]
[1743425013910,3.1e-07,82517.0,82516.0,3.38377518]
[1743425015032,3.1e-07,82517.0,82516.0,3.46527518]
[1743425015445,3.1e-07,82517.0,82516.0,3.47527518]
[1743425016095,3.1e-07,82517.0,82516.0,3.47127518]
[1743425016299,3.1e-07,82517.0,82516.0,3.47727518]
[1743425017692,8.7e-07,82529.0,82528.0,0.26899885]
[1743425017892,8.7e-07,82529.0,82528.0,2.84329179]
[1743425018870,8.7e-07,82529.0,82528.0,3.14329179]
[1743425019097,8.7e-07,82529.0,82528.0,3.23529179]
[1743425020489,8.7e-07,82529.0,82528.0,3.28099179]
[1743425021233,8.7e-07,82529.0,82528.0,3.15229179]
[1743425021475,8.7e-07,82529.0,82528.0,3.13775094]
[1743425021710,8.7e-07,82529.0,82528.0,2.83775094]
[1743425022193,8.7e-07,82529.0,82528.0,2.85229179]
[1743425023307,8.7e-07,82529.0,82528.0,2.89899179]
[1743425023650,8.7e-07,82529.0,82528.0,2.99899179]
[1743425024480,8.7e-07,82529.0,82528.0,3.07549179]
[1743425024680,8.7e-07,82529.0,82528.0,3.37549179]
[1743425024882,8.7e-07,82529.0,82528.0,3.39953998]
[1743425025514,8.7e-07,82529.0,82528.0,3.80813998]
[1743425025721,8.7e-07,82529.0,82528.0,4.17041122]
[1743425026545,0.00016917,82529.0,82528.0,4.17041122]
[1743425026903,1.7e-07,82529.0,82528.0,4.17041122]
[1743425027506,1.7e-07,82529.0,82528.0,4.16641122]
[1743425027713,1.7e-07,82541.0,82540.0,0.554421]
[1743425027927,1.7e-07,82541.0,82540.0,3.38353197]
[1743425028128,1.7e-07,82550.0,82549.0,0.654394]
[1743425028342,1.7e-07,82557.0,82556.0,0.71891185]
[1743425028552,7.1e-07,82569.0,82568.0,0.26887585]
[1743425028753,7.1e-07,82569.0,82568.0,2.83770865]
[1743425028965,7.1e-07,82569.0,82568.0,2.84345516]
[1743425029173,7.1e-07,82569.0,82568.0,3.14345516]
[1743425029804,7.1e-07,82573.0,82572.0,0.354322]
[1743425030004,7.1e-07,82573.0,82572.0,0.49146671]
[1743425030217,2.1e-07,82576.0,82575.0,0.67385485]
[1743425030441,2.1e-07,82576.0,82575.0,0.79645871]
[1743425030642,2.1e-07,82576.0,82575.0,1.21025482]
[1743425030848,0.0001682,82600.0,82575.0,1.21025482]
[1743425030849,2e-07,82592.0,82591.0,0.012107]
[1743425031061,2e-07,82592.0,82591.0,2.62795334]
[1743425031261,2e-07,82600.0,82599.0,0.4519]
[1743425031470,2e-07,82600.0,82599.0,0.43470986]
[1743425031673,2e-07,82600.0,82599.0,0.44925071]
[1743425032090,2e-07,82600.0,82599.0,1.67262698]
[1743425032300,2e-07,82600.0,82599.0,1.36052098]
[1743425032644,2e-07,82600.0,82599.0,1.37309437]
[1743425033086,2e-07,82600.0,82599.0,1.47309437]
[1743425033501,0.05006787,82624.0,82619.0,0.012103]
[1743425033704,0.05006787,82624.0,82622.0,0.254166]
[1743425033850,0.05006787,82624.0,82623.0,0.13714471]
[1743425034061,0.05006787,82624.0,82623.0,0.12260386]
[1743425034262,0.05006787,82624.0,82619.0,1.22337627]
[1743425034263,0.254175,82620.0,82619.0,1.22337627]
[1743425034465,0.29213087,82624.0,82619.0,1.22337627]
[1743425034466,0.06217087,82624.0,82619.0,1.34598013]
[1743425034668,0.25417,82622.0,82620.0,0.12260386]
[1743425034994,0.05006787,82624.0,82623.0,0.012103]
[1743425035206,0.05006787,82624.0,82623.0,0.13470686]
[1743425035422,0.05006787,82624.0,82623.0,0.15166819]
[1743425035631,0.05006787,82624.0,82623.0,0.14924771]
[1743425035831,0.05006787,82624.0,82623.0,0.15166786]
[1743425036043,0.05006787,82624.0,82623.0,0.14924771]
[1743425036698,0.05006787,82624.0,82623.0,0.56026808]
[1743425036901,0.05006787,82624.0,82623.0,0.55784771]
[1743425039330,0.05006787,82624.0,82623.0,0.85784771]
[1743425041008,0.05006787,82624.0,82623.0,0.12260386]
[1743425041202,0.05717087,82624.0,82623.0,0.12260386]
[1743425041402,0.04506787,82624.0,82623.0,0.12260386]
[1743425041816,0.05717087,82624.0,82623.0,0.12260386]
[1743425042711,0.06837657,82624.0,82623.0,0.12260386]
[1743425043330,0.09079235,82624.0,82623.0,0.12260386]
[1743425043705,0.07868935,82624.0,82623.0,0.12260386]
[1743425045352,0.07868935,82624.0,82623.0,0.13470686]
[1743425046176,0.07868935,82624.0,82623.0,0.14924771]
[1743425046433,0.06748365,82624.0,82623.0,0.14924771]
[1743425046634,0.04506787,82624.0,82623.0,0.14924771]
[1743425046884,8.7e-07,82624.0,82623.0,0.49131071]
[1743425047043,0.0826,82656.0,82623.0,0.49131071]
[1743425047044,0.4134,82661.0,82653.0,0.012098]
[1743425047256,0.4134,82661.0,82656.0,0.241964]
[1743425047622,0.4134,82661.0,82657.0,0.12260386]
[1743425048036,0.02242692,82657.0,82642.0,0.0121]
[1743425048234,0.03452492,82657.0,82650.0,0.12260386]
[1743425048444,0.02242692,82657.0,82650.0,0.12260386]
[1743425048852,0.241984,82650.0,82649.0,1.22384366]
[1743425049059,0.02242692,82656.0,82649.0,0.00046739]
[1743425049269,0.012098,82655.0,82649.0,0.00046739]
[1743425049472,0.241984,82650.0,82649.0,0.00046739]
[1743425049698,0.254083,82650.0,82649.0,0.00046739]
[1743425050121,0.26529663,82650.0,82649.0,0.00046739]
[1743425050328,0.28772355,82650.0,82649.0,0.00046739]
[1743425050994,0.70112355,82650.0,82649.0,0.00046739]
[1743425052417,0.46500161,82650.0,82649.0,0.12253218]
[1743425052620,0.71908461,82650.0,82649.0,0.12253218]
[1743425053026,0.71908461,82650.0,82641.0,1.22337627]
[1743425053027,0.254107,82642.0,82641.0,1.22337627]
[1743425053326,0.254107,82642.0,82641.0,1.34644804]
[1743425053778,0.254107,82642.0,82641.0,0.00046791]
[1743425053980,0.27653392,82642.0,82641.0,0.00046791]
[1743425054146,0.28774755,82642.0,82641.0,0.00046791]
[1743425056074,0.78150784,82642.0,82641.0,0.00046791]
[1743425056287,0.70114755,82642.0,82641.0,0.00046791]
[1743425058084,0.254137,82632.0,82631.0,1.22337627]
[1743425058299,0.254137,82632.0,82631.0,0.00046878]
[1743425058782,0.27656392,82632.0,82631.0,0.00046878]
[1743425059695,0.28777755,82632.0,82631.0,0.00046878]
[1743425060336,0.03364055,82632.0,82631.0,0.00046878]
[1743425060538,0.28777755,82632.0,82631.0,0.00046878]
[1743425060770,0.03364055,82632.0,82631.0,0.12307264]
[1743425060996,0.28777755,82632.0,82631.0,0.00046878]
[1743425061222,1.2094822,82632.0,82631.0,7.8e-07]
[1743425061444,1.2094822,82632.0,82623.0,0.0003362]
[1743425061445,0.579163,82624.0,82623.0,9.8e-07]
[1743425061675,0.579163,82624.0,82623.0,8e-08]
[1743425062122,0.584163,82624.0,82623.0,8e-08]
[1743425062406,0.7444379,82624.0,82623.0,8e-08]
[1743425062643,0.76339412,82624.0,82623.0,8e-08]
[1743425062883,0.012108,82587.0,82577.0,1.22337627]
[1743425063124,0.242189,82580.0,82578.0,0.12307948]
[1743425063397,0.254301,82579.0,82578.0,0.12307948]
[1743425064743,0.27696529,82590.0,82578.0,0.12307948]
[1743425064942,0.012108,82587.0,82578.0,0.12307948]
[1743425065154,0.254279,82587.0,82578.0,0.12307948]
[1743425065371,0.242177,82584.0,82578.0,0.12307948]
[1743425066931,0.242181,82583.0,82578.0,0.12307948]
[1743425068473,0.242177,82584.0,82578.0,0.12307948]
[1743425069370,0.242171,82586.0,82578.0,0.12307948]
[1743425069595,0.242165,82588.0,82578.0,0.12307948]
[1743425069895,0.242173,82586.0,82578.0,1.34645575]
[1743425070330,0.242169,82587.0,82578.0,1.34645575]
[1743425070561,0.242174,82585.0,82578.0,1.34645575]
[1743425070796,0.242192,82579.0,82578.0,1.34645575]
[1743425071299,0.242186,82581.0,82578.0,1.34645575]
[1743425071745,0.254301,82579.0,82578.0,1.34645575]
[1743425072810,0.242191,82580.0,82578.0,1.34645575]
[1743425073033,0.242192,82579.0,82578.0,1.34645575]
[1743425074434,0.254301,82579.0,82578.0,1.34645575]
[1743425075337,0.254301,82579.0,82578.0,0.12341548]
[1743425076258,0.15687951,82600.0,82578.0,0.12341548]
[1743425076492,0.57027951,82600.0,82580.0,0.012109]
[1743425076722,0.242157,82591.0,82584.0,0.12260386]
[1743425076962,0.242166,82588.0,82584.0,1.34598013]
[1743425077208,0.242165,82589.0,82584.0,1.34598013]
[1743425077490,0.242165,82590.0,82584.0,1.34598013]
[1743425077663,0.242163,82589.0,82584.0,1.34598013]
[1743425077889,0.242174,82585.0,82584.0,1.34598013]
[1743425078352,0.242174,82585.0,82584.0,0.12260386]
[1743425079018,0.242169,82587.0,82584.0,0.12260386]
[1743425079225,0.242173,82586.0,82584.0,0.12260386]
[1743425079636,0.242174,82585.0,82584.0,0.12260386]
[1743425080343,0.242168,82588.0,82584.0,1.34598013]
[1743425080554,0.25123385,82621.0,82602.0,0.012106]
[1743425080767,0.242085,82616.0,82607.0,0.12260386]
[1743425080972,0.242095,82612.0,82607.0,0.12260386]
[1743425081190,0.242101,82611.0,82607.0,0.12260386]
[1743425081399,0.242102,82610.0,82607.0,0.12260386]
[1743425082216,0.242102,82610.0,82607.0,0.12307948]
[1743425082417,0.242104,82611.0,82607.0,0.12207948]
[1743425082650,0.242092,82613.0,82607.0,0.12207948]
[1743425082856,0.242089,82614.0,82607.0,0.12207948]
[1743425083432,0.242107,82608.0,82607.0,0.12207948]
[1743425084055,0.2421,82611.0,82607.0,0.12207948]
[1743425084316,0.012101,82634.0,82612.0,0.012104]
[1743425084487,0.03105649,82637.0,82612.0,0.012104]
[1743425084488,0.012102,82626.0,82613.0,0.12260386]
[1743425084691,0.242089,82615.0,82613.0,0.12260386]
[1743425084892,0.242089,82614.0,82613.0,0.12260386]
[1743425086070,0.254193,82614.0,82613.0,0.12260386]
[1743425086278,0.254212,82608.0,82607.0,0.00047562]
[1743425086507,0.254212,82608.0,82607.0,0.12307948]
[1743425086709,0.242107,82608.0,82607.0,0.12307948]
[1743425087091,0.242105,82609.0,82607.0,0.12307948]
[1743425087092,0.242101,82610.0,82607.0,0.12307948]
[1743425087295,0.242078,82618.0,82608.0,0.12260386]
[1743425087472,0.242089,82614.0,82608.0,0.12260386]
[1743425087672,0.242094,82613.0,82608.0,0.12260386]
[1743425088244,0.242087,82615.0,82608.0,0.12260386]
[1743425088412,0.242092,82613.0,82608.0,0.12260386]
[1743425088623,0.242096,82612.0,82608.0,0.12260386]
[1743425089405,0.242082,82617.0,82608.0,0.12260386]
[1743425089578,0.242095,82612.0,82608.0,0.12260386]
[1743425090031,0.242098,82611.0,82608.0,0.12260386]
[1743425090242,0.254209,82609.0,82608.0,0.12260386]
[1743425090659,0.242061,82624.0,82608.0,0.12260386]
[1743425090866,0.0122711,82623.0,82608.0,0.12260386]
[1743425091073,0.242097,82612.0,82608.0,0.12260386]
[1743425091260,0.242092,82614.0,82608.0,0.12260386]
[1743425091457,0.242094,82613.0,82608.0,0.12260386]
[1743425092117,0.242085,82616.0,82608.0,0.12260386]
[1743425092338,0.242079,82618.0,82608.0,0.12260386]
[1743425092339,0.242079,82618.0,82609.0,0.242103]
[1743425092514,0.242082,82617.0,82610.0,0.12260386]
[1743425092759,0.242083,82616.0,82610.0,0.12260386]
[1743425092957,0.242086,82615.0,82610.0,0.12260386]
[1743425093173,0.242089,82614.0,82610.0,0.12260386]
[1743425093378,0.242084,82616.0,82610.0,0.12260386]
[1743425094101,0.242088,82615.0,82610.0,0.12260386]
[1743425094308,0.24209,82614.0,82610.0,0.12260386]
[1743425094513,0.242088,82615.0,82610.0,0.12260386]
[1743425094514,0.242096,82612.0,82610.0,0.12260386]
[1743425094651,0.242098,82611.0,82610.0,0.12260386]
[1743425094858,0.242096,82612.0,82610.0,0.12260386]
[1743425095059,0.242082,82617.0,82610.0,0.12260386]
[1743425095276,0.242087,82615.0,82610.0,0.12260386]
[1743425096101,0.24209,82614.0,82610.0,0.12260386]
[1743425096367,0.242087,82615.0,82610.0,0.12260386]
[1743425096612,0.24209,82614.0,82610.0,0.12260386]
[1743425096804,0.242076,82619.0,82611.0,0.242098]
[1743425097139,0.242084,82616.0,82612.0,0.12260386]
[1743425097329,0.242086,82616.0,82612.0,1.34598013]
[1743425097531,0.012103,82620.0,82612.0,1.34598013]
[1743425097674,0.242092,82613.0,82612.0,1.34598013]
[1743425101085,0.254196,82613.0,82612.0,1.34598013]
[1743425102940,0.254196,82613.0,82612.0,0.12260386]
[1743425103159,0.254212,82608.0,82607.0,0.00081182]
[1743425103516,0.242107,82608.0,82607.0,0.00081182]
[1743425103720,0.0001681,82614.0,82607.0,0.12341568]
[1743425103953,0.0001681,82614.0,82608.0,0.12260386]
[1743425104547,0.2422601,82614.0,82608.0,0.12260386]
[1743425104745,0.2422601,82614.0,82608.0,0.36470886]
[1743425104746,0.0001681,82614.0,82608.0,0.36470886]
[1743425104970,0.0001681,82614.0,82608.0,0.12260386]
[1743425105226,0.2422591,82614.0,82608.0,0.12260386]
[1743425105729,0.242092,82613.0,82608.0,0.12260386]
[1743425105845,0.242104,82609.0,82608.0,0.12260386]
[1743425106047,0.2421,82611.0,82608.0,0.12260386]
[1743425106686,0.242102,82610.0,82608.0,0.12260386]
[1743425106857,0.242104,82609.0,82608.0,0.12260386]
[1743425107270,0.254212,82608.0,82607.0,0.00081182]
[1743425107696,0.224212,82608.0,82607.0,0.00081182]
[1743425109212,0.73631111,82608.0,82607.0,0.00081182]
[1743425109419,0.637612,82608.0,82607.0,0.00081182]
[1743425114658,0.942612,82608.0,82607.0,8.2e-07]
[1743425115071,0.98038296,82608.0,82607.0,8.2e-07]
[1743425115498,1.00538296,82608.0,82607.0,8.2e-07]
[1743425116978,0.254301,82579.0,82577.0,1.22337627]
[1743425117159,0.254301,82579.0,82578.0,0.00081247]
[1743425118189,0.24218,82584.0,82578.0,0.12341633]
[1743425118409,0.242192,82579.0,82578.0,0.00081247]
[1743425118633,0.242192,82579.0,82578.0,0.12341633]
[1743425121200,0.41100797,82588.0,82578.0,0.12341633]
[1743425121436,0.41100797,82588.0,82579.0,0.12260386]
[1743425121863,0.242178,82584.0,82579.0,0.12260386]
[1743425122083,0.24218,82583.0,82579.0,0.12260386]
[1743425122331,0.24218,82585.0,82579.0,0.12260386]
[1743425122550,0.25408632,82586.0,82579.0,0.12260386]
[1743425122766,0.01191232,82586.0,82579.0,0.12260386]
[1743425123199,0.242177,82585.0,82579.0,0.12260386]
[1743425123441,0.41339918,82589.0,82585.0,0.012108]
[1743425123659,0.41339918,82603.0,82602.0,0.25423]
[1743425123874,0.41356728,82613.0,82612.0,0.254199]
[1743425124079,0.41356728,82613.0,82612.0,0.37680286]
[1743425124284,0.41356728,82613.0,82612.0,0.12260386]
[1743425124724,0.41356728,82613.0,82578.0,0.000336]
[1743425124725,0.254227,82603.0,82602.0,1.22337627]
[1743425124942,0.254227,82603.0,82593.0,1.22337627]
[1743425124943,0.254252,82595.0,82593.0,1.22337627]
[1743425125199,0.242136,82598.0,82594.0,0.12260386]
[1743425125408,0.24214,82597.0,82595.0,0.12297947]
[1743425125857,0.254249,82596.0,82595.0,0.12297947]
[1743425126075,0.254249,82596.0,82595.0,0.00047647]
[1743425129408,0.242131,82600.0,82595.0,0.00047647]
[1743425129409,0.0001682,82608.0,82599.0,0.012106]
[1743425129616,0.242115,82606.0,82600.0,0.12260386]
[1743425129902,0.242115,82606.0,82600.0,0.07260386]
[1743425129903,0.012105,82605.0,82600.0,0.07260386]
[1743425130102,0.2540241,82606.0,82600.0,0.07260386]
[1743425130542,0.254233,82601.0,82600.0,0.07260386]
[1743425130731,0.254233,82601.0,82593.0,1.22337627]
[1743425130732,0.254249,82596.0,82593.0,1.22337627]
[1743425130966,0.254249,82596.0,82582.0,1.22337627]
[1743425131380,0.66764818,82596.0,82582.0,1.22337627]
[1743425132447,0.66764818,82596.0,82589.0,0.02475346]
[1743425135233,0.242127,82602.0,82595.0,0.36522233]
[1743425135438,0.242127,82602.0,82596.0,0.12260386]
[1743425136083,0.0001682,82608.0,82607.0,0.254215]
[1743425136275,0.0001682,82608.0,82607.0,1.34598013]
[1743425137395,0.0001682,82608.0,82598.0,1.22337627]
[1743425137396,0.254237,82600.0,82598.0,1.22337627]
[1743425137610,0.254239,82599.0,82598.0,1.22337627]
[1743425137822,0.254239,82599.0,82598.0,1.34598013]
[1743425139551,0.242133,82599.0,82598.0,1.34598013]
[1743425141055,0.254239,82599.0,82598.0,1.34598013]
[1743425141264,0.254249,82596.0,82595.0,0.00081267]
[1743425144842,0.66764818,82596.0,82595.0,0.00081267]
[1743425146223,0.91764818,82596.0,82595.0,0.00081267]
[1743425146676,1.27214818,82596.0,82595.0,6.7e-07]
[1743425146897,1.43252201,82596.0,82595.0,6.7e-07]
[1743425147467,1.58012587,82596.0,82595.0,6.7e-07]
[1743425147673,0.254298,82580.0,82578.0,0.000336]
[1743425147881,0.74448331,82580.0,82579.0,0.00081347]
[1743425148065,0.66769651,82580.0,82579.0,0.00081347]
[1743425148267,0.96769651,82580.0,82579.0,0.00081347]
[1743425150498,0.97269651,82580.0,82579.0,0.00081347]
[1743425150699,0.97269651,82580.0,82579.0,4.7e-07]
[1743425150700,1.05329651,82580.0,82579.0,4.7e-07]
[1743425150899,0.559301,82579.0,82578.0,4.7e-07]
[1743425151366,0.97269951,82579.0,82578.0,4.7e-07]
[1743425151725,0.559301,82579.0,82578.0,4.7e-07]
[1743425152730,0.554301,82579.0,82578.0,4.7e-07]
[1743425152930,0.242192,82579.0,82578.0,4.7e-07]
[1743425153130,0.254301,82579.0,82578.0,4.7e-07]
[1743425153956,0.37690486,82579.0,82578.0,4.7e-07]
[1743425154356,0.254301,82579.0,82578.0,4.7e-07]
[1743425156447,0.38190486,82579.0,82578.0,4.7e-07]
[1743425156654,0.254384,82552.0,82551.0,0.004]
[1743425157947,0.25485402,82552.0,82551.0,0.004]
[1743425161676,0.26389735,82552.0,82551.0,0.004]
[1743425162769,0.26389735,82552.0,82551.0,0.0043362]
[1743425164070,0.25178435,82552.0,82551.0,0.00423532]
[1743425164304,0.25485402,82552.0,82551.0,0.00413436]
[1743425164940,0.24274102,82552.0,82551.0,0.00413436]
[1743425165178,0.00047002,82552.0,82551.0,0.46252522]
[1743425165386,0.00047002,82552.0,82551.0,0.20813822]
[1743425166219,0.24274102,82552.0,82551.0,0.20813822]
[1743425166820,0.25485402,82552.0,82551.0,0.00413436]
[1743425167413,0.25485402,82552.0,82551.0,0.02852077]
[1743425168144,0.25485402,82552.0,82551.0,0.00413436]
[1743425169385,0.63121532,82552.0,82551.0,0.00413436]
[1743425169583,0.63621532,82552.0,82551.0,0.00413436]
[1743425170566,0.65518303,82552.0,82551.0,0.00413436]
[1743425171238,0.57382173,82552.0,82551.0,0.00413436]
[1743425172307,0.25485402,82552.0,82551.0,0.00413436]
[1743425172925,0.24274102,82552.0,82551.0,0.02875218]
[1743425173343,0.25485402,82552.0,82551.0,0.02875218]
[1743425174169,0.25485402,82552.0,82551.0,0.00413436]
[1743425174347,0.33242662,82552.0,82551.0,0.00413436]
[1743425175180,0.25485402,82552.0,82551.0,0.00413436]
[1743425176119,0.24274102,82552.0,82551.0,0.00413436]
[1743425176341,0.25485402,82552.0,82551.0,0.00413436]
[1743425176549,0.00047002,82552.0,82551.0,0.25283822]
[1743425176914,0.24274102,82552.0,82551.0,0.25283822]
[1743425177119,0.24274102,82552.0,82551.0,1.47621449]
[1743425177321,0.00047002,82552.0,82551.0,1.47621449]
[1743425177521,0.24274102,82552.0,82551.0,1.47621449]
[1743425177948,0.25485402,82552.0,82551.0,1.22751063]
[1743425178145,0.25485402,82552.0,82551.0,0.00413436]
[1743425179751,0.65786352,82552.0,82551.0,0.00413436]
[1743425180396,0.65786352,82552.0,82551.0,3.6e-07]
[1743425181063,0.55485402,82552.0,82551.0,3.6e-07]
[1743425182643,0.59264353,82552.0,82551.0,3.6e-07]
[1743425183520,0.2709947,82553.0,82551.0,3.6e-07]
[1743425183724,0.2709947,82553.0,82551.0,4.714e-05]
[1743425184098,0.259394,82549.0,82548.0,9.4e-07]
[1743425184339,0.254394,82549.0,82548.0,4.772e-05]
[1743425187985,0.24228,82549.0,82548.0,4.772e-05]
[1743425188168,0.24228,82549.0,82548.0,0.12265158]
[1743425188371,0.24228,82549.0,82548.0,0.19855158]
[1743425188983,0.254394,82549.0,82548.0,0.19855158]
[1743425189739,0.24228,82549.0,82548.0,0.19855158]
[1743425190313,0.242278,82550.0,82548.0,0.19855158]
[1743425190528,0.2424393,82552.0,82549.0,0.12260386]
[1743425190738,0.242277,82551.0,82549.0,0.12260386]
[1743425190943,0.0001683,82552.0,82549.0,0.12260386]
[1743425190944,0.1001683,82552.0,82549.0,0.12260386]
[1743425191152,0.1001683,82552.0,82551.0,0.254387]
[1743425191349,0.1001683,82552.0,82551.0,0.37699086]
[1743425191565,0.1001683,82552.0,82551.0,1.60036713]
[1743425191773,0.1001683,82552.0,82551.0,1.61490798]
[1743425192610,0.1001683,82552.0,82551.0,1.60279498]
[1743425193051,0.1001683,82552.0,82551.0,1.61490798]
[1743425193243,0.1001683,82552.0,82551.0,1.58825413]
[1743425193912,0.1001683,82552.0,82551.0,1.60036713]
[1743425194535,0.012114,82549.0,82548.0,0.07594772]
[1743425194744,0.254394,82549.0,82548.0,4.772e-05]
[1743425197692,0.554394,82549.0,82548.0,4.772e-05]
[1743425201692,0.254394,82549.0,82548.0,4.772e-05]
[1743425201866,0.1001683,82552.0,82551.0,0.254387]
[1743425202198,0.1001683,82552.0,82551.0,0.42539086]
[1743425202578,0.1001683,82552.0,82551.0,0.17100386]